[Event "Late-Titled-Tuesday-Blitz-February-13-2024"]
[Site "Chess.com"]
[Date "2024.02.13"]
[Round "2"]
[White "pirulillo"]
[Black "KnobbedHornbill"]
[Result "0-1"]
[WhiteElo "2291"]
[BlackElo "2518"]
[TimeControl "180+1"]
[EndTime "14:17:26 PST"]
[Termination "KnobbedHornbill won by checkmate"]

1. e4 {[%clk 0:03:00.1]} 1... c5 {[%clk 0:02:59.8]} 2. Nf3 {[%clk 0:02:59.3]}
2... e6 {[%clk 0:02:59.5]} 3. d3 {[%clk 0:02:58.6]} 3... Nc6 {[%clk 0:02:58.9]}
4. g3 {[%clk 0:02:58.6]} 4... Nf6 {[%clk 0:02:59.1]} 5. Bg2 {[%clk 0:02:58.6]}
5... Be7 {[%clk 0:02:59.6]} 6. O-O {[%clk 0:02:58.7]} 6... O-O {[%clk
0:03:00.1]} 7. Re1 {[%clk 0:02:58.5]} 7... d5 {[%clk 0:02:59.8]} 8. e5 {[%clk
0:02:58.7]} 8... Nd7 {[%clk 0:03:00]} 9. Bf4 {[%clk 0:02:58.9]} 9... b5 {[%clk
0:02:57.8]} 10. h4 {[%clk 0:02:59.2]} 10... h6 {[%clk 0:02:50.8]} 11. a4 {[%clk
0:02:58.7]} 11... Ba6 {[%clk 0:02:45.2]} 12. Nbd2 {[%clk 0:02:56]} 12... b4
{[%clk 0:02:45.2]} 13. Nf1 {[%clk 0:02:53]} 13... Re8 {[%clk 0:02:28.4]} 14. c3
{[%clk 0:02:46.8]} 14... bxc3 {[%clk 0:02:23.4]} 15. bxc3 {[%clk 0:02:46.4]}
15... Qa5 {[%clk 0:02:20.3]} 16. Bd2 {[%clk 0:02:45.1]} 16... Bxd3 {[%clk
0:02:08]} 17. c4 {[%clk 0:02:39.8]} 17... Qa6 {[%clk 0:02:07.4]} 18. cxd5 {[%clk
0:02:39.4]} 18... exd5 {[%clk 0:02:07.2]} 19. e6 {[%clk 0:02:39.1]} 19... fxe6
{[%clk 0:02:00.5]} 20. Rxe6 {[%clk 0:02:38.9]} 20... Nf8 {[%clk 0:02:01]} 21.
Rxc6 {[%clk 0:02:33.3]} 21... Qxc6 {[%clk 0:02:01.9]} 22. Ne5 {[%clk 0:02:33.2]}
22... Qa6 {[%clk 0:01:59.8]} 23. Bxd5+ {[%clk 0:02:32.9]} 23... Kh8 {[%clk
0:01:52.4]} 24. Nxd3 {[%clk 0:02:16.7]} 24... Qxd3 {[%clk 0:01:50.8]} 25. Bxa8
{[%clk 0:02:15.7]} 25... Rxa8 {[%clk 0:01:49.1]} 26. Qc1 {[%clk 0:02:07.1]}
26... Bf6 {[%clk 0:01:44.2]} 27. Ra3 {[%clk 0:02:06.5]} 27... Qd6 {[%clk
0:01:33.6]} 28. Bf4 {[%clk 0:02:00.2]} 28... Qe7 {[%clk 0:01:31]} 29. Ne3 {[%clk
0:01:57.5]} 29... Rd8 {[%clk 0:01:29.7]} 30. Nf5 {[%clk 0:01:55.1]} 30... Qe2
{[%clk 0:01:28.2]} 31. Nd6 {[%clk 0:01:34.6]} 31... Qe6 {[%clk 0:01:10.9]} 32.
Re3 {[%clk 0:01:31.8]} 32... Qd5 {[%clk 0:01:07.7]} 33. Nc4 {[%clk 0:00:28.1]}
33... Ne6 {[%clk 0:01:06.5]} 34. Be5 {[%clk 0:00:24.7]} 34... Bxe5 {[%clk
0:00:54.7]} 35. Rxe5 {[%clk 0:00:23.9]} 35... Qc6 {[%clk 0:00:54.1]} 36. Kh2
{[%clk 0:00:20.5]} 36... Nd4 {[%clk 0:00:54]} 37. Kh3 {[%clk 0:00:17.1]} 37...
Qd7+ {[%clk 0:00:45]} 38. Kg2 {[%clk 0:00:17.2]} 38... Qb7+ {[%clk 0:00:42.4]}
39. Kh3 {[%clk 0:00:15.8]} 39... Rf8 {[%clk 0:00:37.2]} 40. Qe3 {[%clk
0:00:15.6]} 40... Nf3 {[%clk 0:00:36.2]} 41. Re8 {[%clk 0:00:13.7]} 41... Ng1+
{[%clk 0:00:32.8]} 42. Kh2 {[%clk 0:00:13.8]} 42... Nf3+ {[%clk 0:00:33.4]} 43.
Kh3 {[%clk 0:00:13.4]} 43... Qd7+ {[%clk 0:00:33.9]} 44. Kg2 {[%clk 0:00:13.2]}
44... Nxh4+ {[%clk 0:00:31.2]} 45. gxh4 {[%clk 0:00:12]} 45... Rxe8 {[%clk
0:00:31.9]} 46. Qxc5 {[%clk 0:00:12.1]} 46... Qg4+ {[%clk 0:00:30.9]} 47. Kf1
{[%clk 0:00:11.5]} 47... Qh3+ {[%clk 0:00:30.8]} 48. Kg1 {[%clk 0:00:11.3]}
48... Re1# {[%clk 0:00:31.5]} 0-1

[Event "Late-Titled-Tuesday-Blitz-February-13-2024"]
[Site "Chess.com"]
[Date "2024.02.13"]
[Round "2"]
[White "NCchamp"]
[Black "MathiasWomacka"]
[Result "0-1"]
[WhiteElo "2313"]
[BlackElo "2528"]
[TimeControl "180+1"]
[EndTime "14:17:29 PST"]
[Termination "MathiasWomacka won on time"]

1. d4 {[%clk 0:03:00.9]} 1... Nf6 {[%clk 0:02:58.2]} 2. c4 {[%clk 0:02:57.7]}
2... e6 {[%clk 0:02:58.7]} 3. Nc3 {[%clk 0:02:52.6]} 3... Bb4 {[%clk 0:02:58.9]}
4. Qc2 {[%clk 0:02:51.9]} 4... c5 {[%clk 0:02:55]} 5. e3 {[%clk 0:02:37.9]} 5...
Nc6 {[%clk 0:02:51.2]} 6. Nf3 {[%clk 0:02:36.1]} 6... cxd4 {[%clk 0:02:48]} 7.
exd4 {[%clk 0:02:37]} 7... d5 {[%clk 0:02:47.7]} 8. c5 {[%clk 0:02:16.4]} 8...
O-O {[%clk 0:02:31.6]} 9. Be2 {[%clk 0:01:59]} 9... e5 {[%clk 0:01:59.4]} 10.
dxe5 {[%clk 0:01:16.3]} 10... Ng4 {[%clk 0:01:57]} 11. a3 {[%clk 0:00:58]} 11...
Bxc5 {[%clk 0:01:53.9]} 12. O-O {[%clk 0:00:57.3]} 12... Ncxe5 {[%clk 0:01:49]}
13. h3 {[%clk 0:00:50.1]} 13... Nxf3+ {[%clk 0:01:40.8]} 14. Bxf3 {[%clk
0:00:51]} 14... Ne5 {[%clk 0:01:35.7]} 15. Bxd5 {[%clk 0:00:49.8]} 15... Qh4
{[%clk 0:01:33.5]} 16. Qe4 {[%clk 0:00:33.9]} 16... Qxe4 {[%clk 0:01:22.6]} 17.
Nxe4 {[%clk 0:00:34.8]} 17... Bb6 {[%clk 0:01:21.3]} 18. Rd1 {[%clk 0:00:29.6]}
18... Rd8 {[%clk 0:01:15.6]} 19. Bf4 {[%clk 0:00:28.1]} 19... Nc6 {[%clk
0:01:08.9]} 20. Bxc6 {[%clk 0:00:15.1]} 20... bxc6 {[%clk 0:01:03.8]} 21. Rxd8+
{[%clk 0:00:14.4]} 21... Bxd8 {[%clk 0:01:04.7]} 22. Rc1 {[%clk 0:00:14.1]}
22... Be6 {[%clk 0:01:01.4]} 23. Nc5 {[%clk 0:00:07.9]} 23... Bd5 {[%clk
0:01:01.1]} 24. b4 {[%clk 0:00:07.1]} 24... a5 {[%clk 0:00:56.2]} 25. Re1 {[%clk
0:00:07.6]} 25... Bf6 {[%clk 0:00:52.4]} 26. bxa5 {[%clk 0:00:02.8]} 26... Bc3
{[%clk 0:00:49.7]} 27. Rb1 {[%clk 0:00:03.3]} 27... Bxa5 {[%clk 0:00:48.5]} 28.
Rb8+ {[%clk 0:00:03.9]} 28... Rxb8 {[%clk 0:00:46]} 29. Bxb8 {[%clk 0:00:04.8]}
29... Kf8 {[%clk 0:00:45.2]} 30. Bd6+ {[%clk 0:00:04.7]} 30... Ke8 {[%clk
0:00:44.9]} 31. Kf1 {[%clk 0:00:04.2]} 31... g5 {[%clk 0:00:36]} 32. f3 {[%clk
0:00:04]} 32... h5 {[%clk 0:00:34.5]} 33. Kf2 {[%clk 0:00:04.5]} 33... f6 {[%clk
0:00:33.3]} 34. g3 {[%clk 0:00:04.5]} 34... Kf7 {[%clk 0:00:32.2]} 35. h4 {[%clk
0:00:04.5]} 35... gxh4 {[%clk 0:00:30.9]} 36. gxh4 {[%clk 0:00:05.4]} 36... Kg6
{[%clk 0:00:30.5]} 37. Kg3 {[%clk 0:00:05.9]} 37... Kf5 {[%clk 0:00:30.6]} 38.
Bf8 {[%clk 0:00:05.3]} 38... Be1+ {[%clk 0:00:28.3]} 39. Kg2 {[%clk 0:00:03.9]}
39... Bxh4 {[%clk 0:00:24.2]} 40. Nd3 {[%clk 0:00:04.4]} 40... Ke6 {[%clk
0:00:21.7]} 41. a4 {[%clk 0:00:03.9]} 41... Bc4 {[%clk 0:00:19.3]} 42. Nb4
{[%clk 0:00:03]} 42... Kd7 {[%clk 0:00:17.8]} 43. a5 {[%clk 0:00:02]} 43... Kc7
{[%clk 0:00:17.1]} 0-1

[Event "Late-Titled-Tuesday-Blitz-February-13-2024"]
[Site "Chess.com"]
[Date "2024.02.13"]
[Round "2"]
[White "MusicCityMaster"]
[Black "mr_gustavo"]
[Result "1-0"]
[WhiteElo "2455"]
[BlackElo "2727"]
[TimeControl "180+1"]
[EndTime "14:17:30 PST"]
[Termination "MusicCityMaster won on time"]

1. d4 {[%clk 0:02:59.5]} 1... Nf6 {[%clk 0:02:51.2]} 2. c4 {[%clk 0:02:58.3]}
2... e6 {[%clk 0:02:50.8]} 3. Nf3 {[%clk 0:02:56.8]} 3... b6 {[%clk 0:02:48.4]}
4. Qc2 {[%clk 0:02:56.7]} 4... Bb7 {[%clk 0:02:47.7]} 5. a3 {[%clk 0:02:56.7]}
5... c5 {[%clk 0:02:46.7]} 6. Nc3 {[%clk 0:02:52]} 6... Bxf3 {[%clk 0:02:46.4]}
7. exf3 {[%clk 0:02:47.3]} 7... cxd4 {[%clk 0:02:46.2]} 8. Nb5 {[%clk 0:02:48]}
8... Nc6 {[%clk 0:02:45.8]} 9. Qd1 {[%clk 0:02:30.9]} 9... e5 {[%clk 0:02:43.1]}
10. f4 {[%clk 0:02:27.7]} 10... d6 {[%clk 0:02:42.5]} 11. Qa4 {[%clk 0:02:17.5]}
11... Qd7 {[%clk 0:02:29.7]} 12. Be2 {[%clk 0:02:15.4]} 12... Be7 {[%clk
0:02:26.9]} 13. Bf3 {[%clk 0:02:04.2]} 13... e4 {[%clk 0:02:24.8]} 14. Be2
{[%clk 0:02:03.1]} 14... d3 {[%clk 0:02:18.9]} 15. Bd1 {[%clk 0:01:57.2]} 15...
O-O {[%clk 0:02:05.6]} 16. O-O {[%clk 0:01:55]} 16... Nd4 {[%clk 0:02:01.2]} 17.
Nxd4 {[%clk 0:01:54.2]} 17... Qb7 {[%clk 0:01:43.1]} 18. Qc6 {[%clk 0:01:43]}
18... Qb8 {[%clk 0:01:36.1]} 19. Nf5 {[%clk 0:01:34.3]} 19... Re8 {[%clk
0:01:30.5]} 20. b4 {[%clk 0:01:26.2]} 20... Bf8 {[%clk 0:00:58.9]} 21. Bb2
{[%clk 0:01:24.8]} 21... Qd8 {[%clk 0:00:59.4]} 22. Bb3 {[%clk 0:01:05.2]} 22...
Rc8 {[%clk 0:00:58.3]} 23. Qa4 {[%clk 0:00:57.5]} 23... Rc7 {[%clk 0:00:49.9]}
24. Rad1 {[%clk 0:00:51.1]} 24... Nh5 {[%clk 0:00:37.9]} 25. g3 {[%clk
0:00:41.4]} 25... g6 {[%clk 0:00:35.5]} 26. Ne3 {[%clk 0:00:40.5]} 26... Rb7
{[%clk 0:00:30.7]} 27. Nd5 {[%clk 0:00:39.7]} 27... Bg7 {[%clk 0:00:24.3]} 28.
Bxg7 {[%clk 0:00:37.5]} 28... Nxg7 {[%clk 0:00:21.7]} 29. Rfe1 {[%clk
0:00:35.5]} 29... Re6 {[%clk 0:00:09.8]} 30. Ba2 {[%clk 0:00:33.1]} 30... Kh8
{[%clk 0:00:09.7]} 31. Qb3 {[%clk 0:00:32]} 31... Nf5 {[%clk 0:00:08.1]} 32.
Qc3+ {[%clk 0:00:31.6]} 32... Kg8 {[%clk 0:00:08.1]} 33. Rxe4 {[%clk 0:00:27.3]}
33... Rxe4 {[%clk 0:00:03.6]} 34. Nf6+ {[%clk 0:00:26.9]} 34... Qxf6 {[%clk
0:00:02.4]} 35. Qxf6 {[%clk 0:00:25.4]} 35... Re2 {[%clk 0:00:03]} 36. Bb3
{[%clk 0:00:19.2]} 36... Rbe7 {[%clk 0:00:03.7]} 37. Rxd3 {[%clk 0:00:17.9]}
37... Re1+ {[%clk 0:00:04.3]} 38. Kg2 {[%clk 0:00:17.6]} 38... R1e2 {[%clk
0:00:04.1]} 39. c5 {[%clk 0:00:16.6]} 39... bxc5 {[%clk 0:00:02.2]} 40. bxc5
{[%clk 0:00:16.1]} 40... Ne3+ {[%clk 0:00:02.4]} 41. Kf3 {[%clk 0:00:14.1]} 1-0

[Event "Late-Titled-Tuesday-Blitz-February-13-2024"]
[Site "Chess.com"]
[Date "2024.02.13"]
[Round "2"]
[White "JaackCamel"]
[Black "szachmistrz2500"]
[Result "1-0"]
[WhiteElo "2208"]
[BlackElo "2460"]
[TimeControl "180+1"]
[EndTime "14:17:30 PST"]
[Termination "JaackCamel won on time"]

1. d4 {[%clk 0:02:56.1]} 1... Nf6 {[%clk 0:02:57.9]} 2. c4 {[%clk 0:02:55.6]}
2... e6 {[%clk 0:02:55.3]} 3. Nc3 {[%clk 0:02:55]} 3... d5 {[%clk 0:02:55.2]} 4.
cxd5 {[%clk 0:02:54.6]} 4... exd5 {[%clk 0:02:54.8]} 5. Bg5 {[%clk 0:02:54.4]}
5... c6 {[%clk 0:02:54.3]} 6. e3 {[%clk 0:02:53.8]} 6... Be7 {[%clk 0:02:51.2]}
7. Bd3 {[%clk 0:02:52.6]} 7... Nbd7 {[%clk 0:02:49.1]} 8. Qc2 {[%clk 0:02:52.5]}
8... O-O {[%clk 0:02:45.9]} 9. Nge2 {[%clk 0:02:52.2]} 9... Re8 {[%clk
0:02:42.4]} 10. O-O {[%clk 0:02:51.4]} 10... Nf8 {[%clk 0:02:42.4]} 11. h3
{[%clk 0:02:48.7]} 11... g6 {[%clk 0:02:37.8]} 12. Rad1 {[%clk 0:02:44.2]} 12...
Ne6 {[%clk 0:02:37.7]} 13. Bh4 {[%clk 0:02:42.5]} 13... Ng7 {[%clk 0:02:37.7]}
14. f3 {[%clk 0:02:40.3]} 14... Nfh5 {[%clk 0:02:28.3]} 15. Bf2 {[%clk
0:02:39.9]} 15... f5 {[%clk 0:02:27.1]} 16. e4 {[%clk 0:02:28.7]} 16... fxe4
{[%clk 0:02:25.7]} 17. fxe4 {[%clk 0:02:28.4]} 17... dxe4 {[%clk 0:02:24.4]} 18.
Nxe4 {[%clk 0:02:24.5]} 18... Be6 {[%clk 0:02:19.7]} 19. Bc4 {[%clk 0:02:10]}
19... Bd5 {[%clk 0:02:14.7]} 20. Bxd5+ {[%clk 0:02:04]} 20... cxd5 {[%clk
0:02:12.7]} 21. Nc5 {[%clk 0:01:56]} 21... b6 {[%clk 0:02:02.7]} 22. Nd3 {[%clk
0:01:51.5]} 22... Bd6 {[%clk 0:01:59.9]} 23. Ne5 {[%clk 0:01:39.3]} 23... Bxe5
{[%clk 0:01:47.7]} 24. dxe5 {[%clk 0:01:39.1]} 24... Rxe5 {[%clk 0:01:47.9]} 25.
Nd4 {[%clk 0:01:39]} 25... Rc8 {[%clk 0:01:44.8]} 26. Qb3 {[%clk 0:01:38.4]}
26... Nf6 {[%clk 0:01:27.4]} 27. Nb5 {[%clk 0:01:37]} 27... Re4 {[%clk
0:01:10.7]} 28. Nc3 {[%clk 0:01:27.9]} 28... Rec4 {[%clk 0:01:09.4]} 29. Bd4
{[%clk 0:01:25]} 29... Nfh5 {[%clk 0:00:43.6]} 30. Bxg7 {[%clk 0:01:14.2]} 30...
Nxg7 {[%clk 0:00:40.5]} 31. Nxd5 {[%clk 0:01:13.4]} 31... Kh8 {[%clk 0:00:28.6]}
32. Ne3 {[%clk 0:01:05]} 32... Rd4 {[%clk 0:00:28.5]} 33. Nd5 {[%clk 0:00:48.5]}
33... Rxd1 {[%clk 0:00:22.4]} 34. Rxd1 {[%clk 0:00:47.8]} 34... Qd6 {[%clk
0:00:22.1]} 35. Ne3 {[%clk 0:00:36]} 35... Qc5 {[%clk 0:00:21.8]} 36. Kh1 {[%clk
0:00:32.2]} 36... Re8 {[%clk 0:00:21.1]} 37. Nd5 {[%clk 0:00:30.2]} 37... Qf2
{[%clk 0:00:13.3]} 38. Qc3 {[%clk 0:00:24.3]} 38... h5 {[%clk 0:00:09.2]} 39.
Nf6 {[%clk 0:00:19.4]} 39... Rf8 {[%clk 0:00:06.4]} 40. Ne4 {[%clk 0:00:18.4]}
40... Qe2 {[%clk 0:00:04.8]} 41. Qd3 {[%clk 0:00:13.2]} 1-0

[Event "Late-Titled-Tuesday-Blitz-February-13-2024"]
[Site "Chess.com"]
[Date "2024.02.13"]
[Round "2"]
[White "LiemLe"]
[Black "bazar-wokzal"]
[Result "1-0"]
[WhiteElo "3023"]
[BlackElo "2650"]
[TimeControl "180+1"]
[EndTime "14:17:32 PST"]
[Termination "LiemLe won by resignation"]

1. Nf3 {[%clk 0:03:00.9]} 1... c5 {[%clk 0:02:59.7]} 2. c4 {[%clk 0:02:59.5]}
2... g6 {[%clk 0:02:59.6]} 3. d4 {[%clk 0:02:58.3]} 3... Bg7 {[%clk 0:02:59.9]}
4. d5 {[%clk 0:02:54.4]} 4... f5 {[%clk 0:02:59]} 5. Nc3 {[%clk 0:02:45.5]} 5...
e5 {[%clk 0:02:58.3]} 6. e4 {[%clk 0:02:44]} 6... d6 {[%clk 0:02:57.8]} 7. exf5
{[%clk 0:02:42]} 7... gxf5 {[%clk 0:02:53.9]} 8. Ng5 {[%clk 0:02:26.8]} 8... Nf6
{[%clk 0:02:49.2]} 9. f4 {[%clk 0:02:26.9]} 9... O-O {[%clk 0:02:43.2]} 10. Be2
{[%clk 0:02:13.9]} 10... h6 {[%clk 0:02:16]} 11. Nf3 {[%clk 0:01:53.3]} 11...
exf4 {[%clk 0:02:02.4]} 12. Bxf4 {[%clk 0:01:48.1]} 12... Nh5 {[%clk 0:02:02]}
13. Bd2 {[%clk 0:01:41]} 13... f4 {[%clk 0:02:02.1]} 14. O-O {[%clk 0:01:22]}
14... Bg4 {[%clk 0:01:54.7]} 15. Kh1 {[%clk 0:01:11.1]} 15... Nd7 {[%clk
0:01:50.6]} 16. Ng1 {[%clk 0:01:06.5]} 16... Qh4 {[%clk 0:01:36.8]} 17. Nh3
{[%clk 0:01:04]} 17... f3 {[%clk 0:01:08.6]} 18. Bxf3 {[%clk 0:00:58.6]} 18...
Bxh3 {[%clk 0:01:08.6]} 19. Bxh5 {[%clk 0:00:34.6]} 19... Rxf1+ {[%clk
0:01:05.8]} 20. Qxf1 {[%clk 0:00:35.5]} 20... Qxh5 {[%clk 0:01:06.2]} 21. gxh3
{[%clk 0:00:35.4]} 21... Ne5 {[%clk 0:01:01.8]} 22. Ne4 {[%clk 0:00:29.6]} 22...
Rf8 {[%clk 0:00:48.3]} 23. Qg2 {[%clk 0:00:29.9]} 23... Kh8 {[%clk 0:00:37.2]}
24. Rg1 {[%clk 0:00:27.6]} 24... Qf3 {[%clk 0:00:25.5]} 25. Nxd6 {[%clk
0:00:20.2]} 25... Nd3 {[%clk 0:00:20.6]} 26. Qxf3 {[%clk 0:00:19.3]} 26... Rxf3
{[%clk 0:00:20.7]} 27. Bc3 {[%clk 0:00:17.8]} 27... Bxc3 {[%clk 0:00:18.1]} 28.
bxc3 {[%clk 0:00:18.7]} 28... Rf2 {[%clk 0:00:16.5]} 29. Rg3 {[%clk 0:00:17.7]}
29... Nf4 {[%clk 0:00:10.6]} 30. Kg1 {[%clk 0:00:17.1]} 30... Rxa2 {[%clk
0:00:09.8]} 31. Rf3 {[%clk 0:00:17.4]} 31... Ne2+ {[%clk 0:00:04.6]} 32. Kf1
{[%clk 0:00:17.1]} 32... Nc1 {[%clk 0:00:02.7]} 33. Nxb7 {[%clk 0:00:17.2]}
33... a5 {[%clk 0:00:01.5]} 34. Nxc5 {[%clk 0:00:15.6]} 34... a4 {[%clk
0:00:01.8]} 35. d6 {[%clk 0:00:15.8]} 35... a3 {[%clk 0:00:01.9]} 36. d7 {[%clk
0:00:15.2]} 36... Rd2 {[%clk 0:00:02]} 37. Rf8+ {[%clk 0:00:14.6]} 37... Kg7
{[%clk 0:00:02.3]} 38. d8=Q {[%clk 0:00:15.5]} 38... Rxd8 {[%clk 0:00:02.4]} 39.
Rxd8 {[%clk 0:00:16.4]} 39... a2 {[%clk 0:00:02.7]} 40. Ra8 {[%clk 0:00:17]}
40... Kf6 {[%clk 0:00:03.1]} 41. Ke1 {[%clk 0:00:15.6]} 41... Ke5 {[%clk
0:00:03.1]} 42. Kd2 {[%clk 0:00:16]} 1-0

[Event "Late-Titled-Tuesday-Blitz-February-13-2024"]
[Site "Chess.com"]
[Date "2024.02.13"]
[Round "2"]
[White "krzyzan94"]
[Black "Thormento16"]
[Result "1-0"]
[WhiteElo "2788"]
[BlackElo "2460"]
[TimeControl "180+1"]
[EndTime "14:17:34 PST"]
[Termination "krzyzan94 won by checkmate"]

1. Nf3 {[%clk 0:03:00.9]} 1... Nf6 {[%clk 0:02:58.9]} 2. g3 {[%clk 0:03:01.2]}
2... g6 {[%clk 0:02:59.2]} 3. Bg2 {[%clk 0:03:01.8]} 3... Bg7 {[%clk 0:02:59.9]}
4. O-O {[%clk 0:03:02.5]} 4... d5 {[%clk 0:03:00.2]} 5. c4 {[%clk 0:03:02.2]}
5... c6 {[%clk 0:02:58.6]} 6. d4 {[%clk 0:03:00.1]} 6... O-O {[%clk 0:02:58.9]}
7. Nc3 {[%clk 0:02:57.8]} 7... Ne4 {[%clk 0:02:59.1]} 8. Bf4 {[%clk 0:02:50.2]}
8... a5 {[%clk 0:02:57.7]} 9. cxd5 {[%clk 0:02:44.7]} 9... cxd5 {[%clk
0:02:57.6]} 10. Nb5 {[%clk 0:02:41.5]} 10... Nc6 {[%clk 0:02:51.4]} 11. Rc1
{[%clk 0:02:39.7]} 11... Bf5 {[%clk 0:02:43.7]} 12. Qa4 {[%clk 0:02:31.4]} 12...
Rc8 {[%clk 0:02:34.4]} 13. a3 {[%clk 0:02:24.1]} 13... Qb6 {[%clk 0:02:34.1]}
14. Nc3 {[%clk 0:02:06.8]} 14... Nxd4 {[%clk 0:02:22.3]} 15. Nxd4 {[%clk
0:01:57.5]} 15... Qxd4 {[%clk 0:02:09.1]} 16. Qxd4 {[%clk 0:01:30.4]} 16... Bxd4
{[%clk 0:02:10]} 17. Nxd5 {[%clk 0:01:30.9]} 17... Rxc1 {[%clk 0:02:09.7]} 18.
Bxc1 {[%clk 0:01:31.8]} 18... Nd6 {[%clk 0:01:31.4]} 19. Nxe7+ {[%clk
0:01:30.2]} 19... Kg7 {[%clk 0:01:31.5]} 20. Nxf5+ {[%clk 0:01:29]} 20... Nxf5
{[%clk 0:01:32.4]} 21. e3 {[%clk 0:01:25.7]} 21... Bf6 {[%clk 0:01:30.2]} 22.
Bxb7 {[%clk 0:01:06.5]} 22... Rb8 {[%clk 0:01:28.6]} 23. Bf3 {[%clk 0:01:04.2]}
23... Bxb2 {[%clk 0:01:28.2]} 24. Bd2 {[%clk 0:01:03.4]} 24... Bxa3 {[%clk
0:01:25.9]} 25. Bxa5 {[%clk 0:01:03.6]} 25... Be7 {[%clk 0:01:20.7]} 26. Rc1
{[%clk 0:00:58.7]} 26... Rb7 {[%clk 0:01:19.9]} 27. Rc6 {[%clk 0:00:56]} 27...
Ra7 {[%clk 0:01:01.2]} 28. Bc3+ {[%clk 0:00:54.3]} 28... f6 {[%clk 0:01:01.8]}
29. e4 {[%clk 0:00:44.9]} 29... Nd6 {[%clk 0:00:53]} 30. e5 {[%clk 0:00:45.2]}
30... Ne8 {[%clk 0:00:49.8]} 31. Rc8 {[%clk 0:00:37.4]} 31... Rc7 {[%clk
0:00:09.5]} 32. exf6+ {[%clk 0:00:23]} 32... Bxf6 {[%clk 0:00:09.3]} 33. Bxf6+
{[%clk 0:00:21.5]} 33... Kxf6 {[%clk 0:00:06.7]} 34. Rxe8 {[%clk 0:00:21.8]}
34... Rc2 {[%clk 0:00:06.7]} 35. Kg2 {[%clk 0:00:21.8]} 35... Kg7 {[%clk
0:00:07.6]} 36. h4 {[%clk 0:00:21.8]} 36... h5 {[%clk 0:00:08.2]} 37. Re6 {[%clk
0:00:21.4]} 37... Rb2 {[%clk 0:00:08.2]} 38. Be4 {[%clk 0:00:21.5]} 38... Kh7
{[%clk 0:00:07.9]} 39. Bxg6+ {[%clk 0:00:21]} 39... Kh6 {[%clk 0:00:08.2]} 40.
Be8+ {[%clk 0:00:21.4]} 40... Kg7 {[%clk 0:00:08.7]} 41. Bxh5 {[%clk 0:00:22.3]}
41... Kh7 {[%clk 0:00:08.8]} 42. Bf3 {[%clk 0:00:21.1]} 42... Kg7 {[%clk
0:00:09.7]} 43. Be4 {[%clk 0:00:21.4]} 43... Rd2 {[%clk 0:00:10.4]} 44. h5
{[%clk 0:00:21.6]} 44... Kf7 {[%clk 0:00:10.4]} 45. Ra6 {[%clk 0:00:20.6]} 45...
Kg7 {[%clk 0:00:10.8]} 46. h6+ {[%clk 0:00:21]} 46... Kh8 {[%clk 0:00:11.3]} 47.
Ra8+ {[%clk 0:00:20.9]} 47... Rd8 {[%clk 0:00:10.1]} 48. Rxd8# {[%clk 0:00:21]}
1-0

[Event "Late-Titled-Tuesday-Blitz-February-13-2024"]
[Site "Chess.com"]
[Date "2024.02.13"]
[Round "2"]
[White "ukchessbomber"]
[Black "AryanTari"]
[Result "1/2-1/2"]
[WhiteElo "2599"]
[BlackElo "2930"]
[TimeControl "180+1"]
[EndTime "14:17:41 PST"]
[Termination "Game drawn by repetition"]

1. c4 {[%clk 0:03:00.9]} 1... b6 {[%clk 0:02:55.4]} 2. Nc3 {[%clk 0:03:00.6]}
2... Bb7 {[%clk 0:02:54.1]} 3. e4 {[%clk 0:02:57.7]} 3... e5 {[%clk 0:02:53.3]}
4. Nf3 {[%clk 0:02:56.5]} 4... Nc6 {[%clk 0:02:53]} 5. g3 {[%clk 0:02:53.6]}
5... Bc5 {[%clk 0:02:52.5]} 6. Bg2 {[%clk 0:02:53.5]} 6... d6 {[%clk 0:02:52.2]}
7. O-O {[%clk 0:02:52.7]} 7... a5 {[%clk 0:02:51.7]} 8. d3 {[%clk 0:02:46.7]}
8... Nge7 {[%clk 0:02:51.3]} 9. Na4 {[%clk 0:02:43.8]} 9... O-O {[%clk
0:02:50.6]} 10. Nxc5 {[%clk 0:02:43.4]} 10... bxc5 {[%clk 0:02:44.6]} 11. Nh4
{[%clk 0:02:43.7]} 11... Nd4 {[%clk 0:02:43.6]} 12. Qh5 {[%clk 0:02:39.7]} 12...
f5 {[%clk 0:02:30.3]} 13. Bg5 {[%clk 0:02:35.4]} 13... Qe8 {[%clk 0:02:08]} 14.
Qxe8 {[%clk 0:02:00.6]} 14... Raxe8 {[%clk 0:02:08.9]} 15. Bxe7 {[%clk
0:02:01.1]} 15... Rxe7 {[%clk 0:02:08.7]} 16. Nxf5 {[%clk 0:02:02]} 16... Nxf5
{[%clk 0:02:07.2]} 17. exf5 {[%clk 0:02:02.9]} 17... Bxg2 {[%clk 0:02:06.9]} 18.
Kxg2 {[%clk 0:02:03.8]} 18... Rxf5 {[%clk 0:02:06.7]} 19. a3 {[%clk 0:01:56.7]}
19... Rf8 {[%clk 0:01:59.6]} 20. Rfe1 {[%clk 0:01:28.8]} 20... Ref7 {[%clk
0:01:55]} 21. Re2 {[%clk 0:01:29.1]} 21... Rb8 {[%clk 0:01:55.4]} 22. h4 {[%clk
0:01:27.4]} 22... Rb3 {[%clk 0:01:51.4]} 23. Rd2 {[%clk 0:01:27.6]} 23... a4
{[%clk 0:01:49.6]} 24. Rf1 {[%clk 0:01:27.3]} 24... h5 {[%clk 0:01:43.4]} 25. f4
{[%clk 0:01:22.7]} 25... exf4 {[%clk 0:01:42.5]} 26. Rxf4 {[%clk 0:01:23.6]}
26... Rxf4 {[%clk 0:01:41.7]} 27. gxf4 {[%clk 0:01:24.5]} 27... Kf7 {[%clk
0:01:42]} 28. Kf3 {[%clk 0:01:25.1]} 28... Kf6 {[%clk 0:01:35.9]} 29. Ke4 {[%clk
0:01:01.9]} 29... c6 {[%clk 0:01:36]} 30. f5 {[%clk 0:00:51]} 30... Rb8 {[%clk
0:01:11.8]} 31. Rg2 {[%clk 0:00:49.4]} 31... Kf7 {[%clk 0:01:04.9]} 32. Rg6
{[%clk 0:00:40.7]} 32... Re8+ {[%clk 0:01:05]} 33. Kf4 {[%clk 0:00:34.9]} 33...
Rd8 {[%clk 0:01:05.9]} 34. Kg5 {[%clk 0:00:30.6]} 34... Rb8 {[%clk 0:00:43.3]}
35. Rxd6 {[%clk 0:00:30.3]} 35... Rxb2 {[%clk 0:00:43.9]} 36. Rxc6 {[%clk
0:00:16.9]} 36... Rd2 {[%clk 0:00:42.7]} 37. Rc7+ {[%clk 0:00:12.7]} 37... Kf8
{[%clk 0:00:43.1]} 38. Kg6 {[%clk 0:00:12.1]} 38... Rg2+ {[%clk 0:00:43.6]} 39.
Kxh5 {[%clk 0:00:12.1]} 39... Rg3 {[%clk 0:00:44.3]} 40. Rxc5 {[%clk 0:00:09.1]}
40... Rxd3 {[%clk 0:00:44]} 41. Ra5 {[%clk 0:00:06.7]} 41... Rxa3 {[%clk
0:00:44]} 42. Ra7 {[%clk 0:00:06.2]} 42... Ra1 {[%clk 0:00:41.5]} 43. c5 {[%clk
0:00:04.3]} 43... Rc1 {[%clk 0:00:39.7]} 44. Rxa4 {[%clk 0:00:03.5]} 44... Rxc5
{[%clk 0:00:40.3]} 45. Kg6 {[%clk 0:00:04.4]} 45... Rc6+ {[%clk 0:00:40.7]} 46.
Kg5 {[%clk 0:00:04.8]} 46... Kg8 {[%clk 0:00:41.2]} 47. Ra8+ {[%clk 0:00:05]}
47... Kh7 {[%clk 0:00:41.6]} 48. Ra7 {[%clk 0:00:05.9]} 48... Rb6 {[%clk
0:00:41.6]} 49. Rc7 {[%clk 0:00:05.8]} 49... Rd6 {[%clk 0:00:41.6]} 50. Rf7
{[%clk 0:00:06.4]} 50... Ra6 {[%clk 0:00:41.6]} 51. f6 {[%clk 0:00:06.1]} 51...
Ra5+ {[%clk 0:00:37.9]} 52. Kg4 {[%clk 0:00:04.2]} 52... Kg6 {[%clk 0:00:38.8]}
53. Rxg7+ {[%clk 0:00:04.5]} 53... Kxf6 {[%clk 0:00:39.3]} 54. Rg8 {[%clk
0:00:05.2]} 54... Kf7 {[%clk 0:00:39.3]} 55. Rg5 {[%clk 0:00:04.1]} 55... Ra4+
{[%clk 0:00:38.9]} 56. Kg3 {[%clk 0:00:03.2]} 56... Ra3+ {[%clk 0:00:38.7]} 57.
Kg4 {[%clk 0:00:03.5]} 57... Ra4+ {[%clk 0:00:39.3]} 58. Kg3 {[%clk 0:00:04.1]}
58... Ra3+ {[%clk 0:00:39.9]} 59. Kh2 {[%clk 0:00:04.9]} 59... Ra2+ {[%clk
0:00:39.8]} 60. Kh3 {[%clk 0:00:05.8]} 60... Ra3+ {[%clk 0:00:40.2]} 61. Kg4
{[%clk 0:00:06.7]} 61... Ra4+ {[%clk 0:00:40.2]} 1/2-1/2